Cogmind - Beta 13 @@@ ROGUE MODE // 2024.05.31 @ 16:39:39 Player: GFYguy Result: Destroyed by G-47 Trooper with Particle Gun Performance ------------- Evolutions (3) 1500 Regions Visited (5) 1000 Robots Destroyed (14) 70 Value Destroyed (349) 349 Prototype IDs (5) 100 Alien Tech Used (0) 0 Bonus (15) 15 TOTAL SCORE: 3034 Bonus ------- High Alert Combat Kills 15 Cogmind --------- Core Integrity 0/700 Matter 86/300 Energy 86/100 System Corruption 4% Temperature Cool (9) Movement Walking (130) Location -7/Storage Parts ------- > --- POWER (2) -------- (None) > --- PROPULSION (4) --- Improved Titanium Leg > --- UTILITY (5) ------ Medium Storage Unit Hacking Suite System Shield > --- WEAPON (2) ------- (None) > --- INVENTORY (10) --- Micro Nuclear Core Micro Nuclear Core Improved Cryofiber Web Improved Cooling System Improved Melee Analysis Suite Improved Medium Armor Plating System Shield Remote Datajack Remote Datajack Shock Maul Peak State ------------ > --- POWER ------------ Light Deuterium Engine Light Nuclear Core > --- PROPULSION ------- Cesium-ion Thruster Surge Thruster Surge Thruster Surge Thruster > --- UTILITY ---------- Medium Storage Unit Advanced Weight Redist. System Hacking Suite Hacking Suite System Shield > --- WEAPON ----------- Remote Datajack Shock Maul > --- INVENTORY -------- Micro Nuclear Core Micro Nuclear Core Micro Nuclear Core Flight Unit Improved Cryofiber Web Improved Melee Analysis Suite Improved Medium Armor Plating System Shield Remote Datajack Remote Datajack [Rating: 44] Favorites ----------- Power Light Deuterium Engine Engine Light Deuterium Engine Power Core Light Nuclear Core Propulsion Surge Thruster Leg Aluminum Leg Wheel Wheel Hover Unit Airjet Flight Unit Surge Thruster Utility Hacking Suite Device Weight Redist. System Storage Medium Storage Unit Processor Targeting Computer Hackware Hacking Suite Protection Improved Medium Armor Plating Weapon Light Assault Rifle Ballistic Gun Light Assault Rifle Launcher Mini Grenade Launcher Special Weapon Remote Datajack Impact Weapon Shock Maul Build | -11 -10 -9 -8 -7 -7 ------- Run | Yrd Mat Mat Mat Fac Sto Slots Evolved 6 | . . 2 2 2 . Power 1 | . . . . 1 . Propulsion 2 | . . 2 . . . Utility 3 | . . . 2 1 . Weapon . | . . . . . . Parts Attached 52 | 4 2 10 13 11 12 Power 7 | . . 1 1 3 2 Engine 3 | . . 1 1 1 . Core 4 | . . . . 2 2 Reactor . | . . . . . . Propulsion 21 | 1 . 6 5 3 6 Treads . | . . . . . . Leg 3 | . . 2 . . 1 Wheel 1 | 1 . . . . . Hover 4 | . . . . . 4 Flight 13 | . . 4 5 3 1 Utility 10 | 1 1 . 3 3 2 Device 3 | . . . 1 1 1 Storage 2 | 1 . . 1 . . Processor 1 | . 1 . . . . Hackware 3 | . . . 1 2 . Protection 1 | . . . . . 1 Artifact . | . . . . . . Weapon 14 | 2 1 3 4 2 2 Energy Gun . | . . . . . . Energy Cannon . | . . . . . . Ballistic Gun 8 | 2 1 1 3 1 . Ballistic Cannon . | . . . . . . Launcher 3 | . . 2 1 . . Special Weapon 2 | . . . . 1 1 Impact Weapon 1 | . . . . . 1 Slashing Weapon . | . . . . . . Piercing Weapon . | . . . . . . Special Melee Weapon . | . . . . . . Unidentified Prototypes 2 | . . . . 1 1 Parts Lost 20 | . 2 1 4 . 13 Power 1 | . . . . . 1 Propulsion 13 | . 1 . 3 . 9 Utility 2 | . . . . . 2 Weapon 4 | . 1 1 1 . 1 Highest Loss Streak 10 | . 2 1 2 . 10 To Critical Strikes . | . . . . . . Average Slot Usage (%) 81 | . 63 78 98 84 64 Engine 6 | . . 10 9 6 2 Core 3 | . . . . 7 4 Leg 2 | . . 18 . . . Wheel 1 | . 11 . . . . Hover 1 | . . . . . 6 Flight 21 | . . 7 35 28 11 Device 5 | . . . 9 7 6 Storage 8 | . 14 11 9 7 7 Processor 6 | . 8 11 9 5 . Hackware 11 | . . . 9 17 19 Ballistic Gun 8 | . 28 14 14 1 . Launcher 1 | . . 5 3 . . Naked Turns . | . . . . . . Heaviest Build 23 | 7 7 14 19 23 23 Greatest Support 33 | 10 10 20 22 23 33 Greatest Overweight (x) 3 | . 2 . 1 1 3 Average Overweight (x) . | . . . . . . Largest Inventory Capacity 10 | 8 8 8 10 10 10 Average Capacity 9 | 7 8 8 9 10 10 Most Carried 10 | 6 7 8 10 10 10 Average Carried 7 | 3 5 4 9 8 9 Final Capacity 10 | 8 8 8 10 10 10 Final Carried 10 | 4 6 8 10 10 10 Class Distribution -------------------- 24% | Scavenger-Sprinter 23% | Mutant 20% | Hacker-Mutant 15% | Hacker-Sprinter 8% | Scavenger-Mutant 7% | Sprinter Dominant Class ---------------- Mutant | -10/Materials Mutant | -9/Materials Scavenger-Sprinter | -8/Materials Hacker-Sprinter | -7/Factory Hacker-Mutant | -7/Storage Resources | -11 -10 -9 -8 -7 -7 ----------- Run | Yrd Mat Mat Mat Fac Sto Matter Collected 574 | 191 49 20 118 103 93 Remotely . | . . . . . . Salvage Created 353 | . 88 20 152 . 93 Parts 24 | . 3 1 19 . 1 Haulers Intercepted 1 | . 1 . . . . Recyclers Shooed . | . . . . . . Parts Field Recycled . | . . . . . . Retrieved Matter . | . . . . . . Parts Self-Destructed . | . . . . . . Prevented . | . . . . . . Kills | -11 -10 -9 -8 -7 -7 ------- Run | Yrd Mat Mat Mat Fac Sto Combat Hostiles Destroyed 12 | . 1 1 8 . 2 Guns 4 | . 1 1 2 . . AOE 6 | . . . 6 . . Classes Destroyed 7 | . 2 1 3 . 1 Hauler 1 | . 1 . . . . Watcher 1 | . . . 1 . . Swarmer 6 | . . . 6 . . Cutter 1 | . . . 1 . . Grunt 2 | . 1 . 1 . . Sentry 2 | . . 1 . . 1 Hunter 1 | . . . . . 1 Best Kill Streak 6 | . 1 1 6 . 1 Combat Bots Only 6 | . 1 1 6 . 1 Max Kills in Single Turn 3 | . 1 1 3 . 1 Gunslinging . | . . . . . . Exploded 3 | . . . 3 . . Melee . | . . . . . . Uniques/NPCs Destroyed . | . . . . . . Combat | -11 -10 -9 -8 -7 -7 -------- Run | Yrd Mat Mat Mat Fac Sto Hostile Shots Fired 466 | . 48 16 59 7 336 Missed 210 | . 10 8 30 5 157 Damage Taken 2672 | . 421 116 446 12 1677 Core 1018 | . 165 16 131 . 706 Absorbed by Shields . | . . . . . . Regen/Repaired (Parts) 46 | . . . . 46 . Core Remaining (%) 76 | 100 34 96 76 . . Volleys Fired 35 | . 9 5 18 3 . Largest 2 | . 2 2 2 1 . Hottest 53 | . 40 50 53 5 . Shots Fired 59 | . 18 10 28 3 . Gun 47 | . 18 5 24 . . Cannon . | . . . . . . Launcher 9 | . . 5 4 . . Special 3 | . . . . 3 . Kinetic 47 | . 18 5 24 . . Thermal . | . . . . . . Explosive 9 | . . 5 4 . . Electromagnetic . | . . . . . . Robot Hit Streak 12 | . 7 8 12 2 . Robot Miss Streak 4 | . 2 1 4 1 . Penetration Max . | . . . . . . Secondary Targets . | . . . . . . Shots Hit Robots 49 | . 14 8 16 2 9 Core Hits 22 | . 5 3 14 . . Critical Kills . | . . . . . . Critical Parts Destroyed 4 | . . . . . 4 Critical Strikes 4 | . . . . . 4 Smash 4 | . . . . . 4 Melee Attacks 12 | . . . . . 12 Impact 12 | . . . . . 12 Slashing . | . . . . . . Piercing . | . . . . . . Sneak Attacks . | . . . . . . Combat Hostiles . | . . . . . . Follow-up Attacks . | . . . . . . Damage Inflicted 1083 | . 126 92 463 . 402 Guns 283 | . 126 29 128 . . Cannons . | . . . . . . Explosions 398 | . . 63 335 . . Melee 402 | . . . . . 402 Ramming . | . . . . . . Kinetic 283 | . 126 29 128 . . Thermal . | . . . . . . Explosive 398 | . . 63 335 . . Electromagnetic . | . . . . . . Impact 402 | . . . . . 402 Slashing . | . . . . . . Piercing . | . . . . . . Highest Corruption 4 | . . . . 1 4 Average Corruption 1 | . . . . 1 2 Corruption Purged . | . . . . . . Corruption Blocked . | . . . . . . Effects 5 | . . . . 2 3 Message Errors 2 | . . . . 2 . Parts Fused 1 | . . . . . 1 Data Loss (minor) 2 | . . . . . 2 Overload Shots . | . . . . . . Overflow Damage 234 | . . . 33 . 201 Projectiles . | . . . . . . Explosions 33 | . . . 33 . . Melee 201 | . . . . . 201 Knockbacks 2 | . . . . . 2 Impact 2 | . . . . . 2 Kinetic . | . . . . . . Secondary . | . . . . . . Self-Inflicted Damage 44 | . . . 44 . . Shots 1 | . . . 1 . . Rammed . | . . . . . . Targets Rammed . | . . . . . . Kicked . | . . . . . . Crushed . | . . . . . . Highest Temperature 35 | . 14 35 24 . 17 Average Temperature 8 | . 7 12 6 . 8 Received Heat Transfer 1032 | . 228 72 117 . 615 Siege Activations . | . . . . . . Robots Corrupted . | . . . . . . Combat Hostiles . | . . . . . . Parts Fried 2 | . . . . . 2 Impact Corruptions 4 | . . . . . 4 Robots Melted . | . . . . . . Combat Hostiles . | . . . . . . Parts Melted . | . . . . . . Heat Transferred . | . . . . . . Parts Sabotaged . | . . . . . . Parts Stolen . | . . . . . . Parts Stripped . | . . . . . . Power Chain Reactions . | . . . . . . Alert | -11 -10 -9 -8 -7 -7 ------- Run | Yrd Mat Mat Mat Fac Sto Peak Influence 607 | . 52 107 607 304 326 Initial 275 | . . 21 44 275 60 Average 204 | . 21 52 339 272 173 Maximum Alert Level 2 | . . . 2 1 1 Low Security (%) 44 | 100 100 100 18 8 59 Level 1 46 | . . . 41 91 40 Level 2 8 | . . . 40 . . Level 3 . | . . . . . . Level 4 . | . . . . . . Level 5 . | . . . . . . High Security . | . . . . . . Max Security . | . . . . . . Squads Dispatched 7 | . 2 . 1 . 4 Investigation 2 | . 1 . . . 1 Extermination . | . . . . . . Reinforcement 5 | . 1 . 1 . 3 Assault . | . . . . . . Garrison . | . . . . . . Intercept . | . . . . . . Searches Triggered . | . . . . . . Construction Impeded . | . . . . . . Haulers Reinforced . | . . . . . . Active Scanning Responses . | . . . . . . Cargo Convoy Interrupts . | . . . . . . Stealth | -11 -10 -9 -8 -7 -7 --------- Run | Yrd Mat Mat Mat Fac Sto Distress Signals 8 | . . . 5 . 3 Communications Jammed . | . . . . . . Distress Signals . | . . . . . . Times Spotted 78 | . 6 1 41 6 24 Peak Tracking Total 14 | . 5 1 8 6 14 Tactical Retreats 13 | . . . 9 . 4 Traps | -11 -10 -9 -8 -7 -7 ------- Run | Yrd Mat Mat Mat Fac Sto Traps Triggered 5 | . 1 . . 1 3 Indirectly . | . . . . . . Trap Hack Attempts . | . . . . . . Triggered . | . . . . . . Disarmed . | . . . . . . Reprogrammed . | . . . . . . Reused . | . . . . . . Traps Extracted . | . . . . . . Installed . | . . . . . . Triggered . | . . . . . . Machines | -11 -10 -9 -8 -7 -7 ---------- Run | Yrd Mat Mat Mat Fac Sto Machines Disabled 1 | . . 1 . . . Max in Single Turn 1 | . . 1 . . . Garrison Access 1 | . . . . 1 . Machines Repaired . | . . . . . . Machines Dismantled . | . . . . . . Machines Sabotaged . | . . . . . . Overloaded Fab Kills . | . . . . . . Hacking | -11 -10 -9 -8 -7 -7 --------- Run | Yrd Mat Mat Mat Fac Sto Machines Accessed 15 | . 2 1 2 7 3 Terminals 8 | . 1 . 2 2 3 Fabricators 2 | . . . . 2 . Repair Stations 1 | . . . . 1 . Recycling Units 3 | . 1 1 . 1 . Scanalyzers . | . . . . . . Garrison Access 1 | . . . . 1 . Total Hacks 28 | . 4 3 4 14 3 Successful 16 | . 2 1 3 7 3 Failed 12 | . 2 2 1 7 . Catastrophic 1 | . . . 1 . . Database Lockouts . | . . . . . . Manual . | . . . . . . Terminals 17 | . 3 . 4 7 3 Fabricators 2 | . . . . 2 . Repair Stations 2 | . . . . 2 . Recycling Units 5 | . 1 3 . 1 . Scanalyzers . | . . . . . . Garrison Access 2 | . . . . 2 . Terminal Hacks 9 | . 1 . 3 2 3 Record 2 | . . . 2 . . Prototype ID Bank 1 | . . . . 1 . Open Door 3 | . . . . . 3 Registered Prototypes 1 | . . . 1 . . Zone Layout 2 | . 1 . . 1 . Fabricator Hacks 2 | . . . . 2 . Network Status 1 | . . . . 1 . Build 1 | . . . . 1 . Repair Station Hacks 2 | . . . . 2 . Scan Component 1 | . . . . 1 . Repair 1 | . . . . 1 . Recycling Unit Hacks 2 | . 1 1 . . . Report Inventory 2 | . 1 1 . . . Scanalyzer . | . . . . . . Garrison Access Hacks 1 | . . . . 1 . Seal Access 1 | . . . . 1 . Unauthorized Hacks . | . . . . . . Terminals . | . . . . . . Fabricators . | . . . . . . Repair Stations . | . . . . . . Recycling Units . | . . . . . . Scanalyzers . | . . . . . . Garrison Access . | . . . . . . Data Cores Recovered . | . . . . . . Used . | . . . . . . Hacking Detections 8 | . 1 1 2 4 . Full Trace Events 1 | . . . 1 . . Feedback Events . | . . . . . . Feedback Blocked . | . . . . . . Robot Schematics Acquired . | . . . . . . Robots Built . | . . . . . . Authchips . | . . . . . . Time . | . . . . . . Total Robot Build Rating . | . . . . . . Part Schematics Acquired . | . . . . . . Parts Built 1 | . . . . 1 . Authchips . | . . . . . . Time 47 | . . . . 47 . Total Part Build Rating 5 | . . . . 5 . Parts Repaired 1 | . . . . 1 . Time 38 | . . . . 38 . Parts Recycled . | . . . . . . Recycled Matter . | . . . . . . Retrieved Matter . | . . . . . . Retrieved Components . | . . . . . . Parts Scanalyzed . | . . . . . . Part Schematics Acquired . | . . . . . . Parts Damaged . | . . . . . . Bothacking | -11 -10 -9 -8 -7 -7 ------------ Run | Yrd Mat Mat Mat Fac Sto Used RIF Installer . | . . . . . . Robots Hacked 1 | . . . . 1 . Non-combat 1 | . . . . 1 . Combat . | . . . . . . Robot Hacks Applied 1 | . . . . 1 . parse_system 1 | . . . . 1 . Relay Couplers Released . | . . . . . . Fabnet Peak Effective % . | . . . . . . Robots Rewired . | . . . . . . Allies Hacked . | . . . . . . Hacks Repelled . | . . . . . . Allies | -11 -10 -9 -8 -7 -7 -------- Run | Yrd Mat Mat Mat Fac Sto Total Allies . | . . . . . . Largest Group . | . . . . . . Highest-Rated Group . | . . . . . . Highest-Rated Ally . | . . . . . . Total Orders . | . . . . . . Ally Attacks . | . . . . . . Total Damage . | . . . . . . Kills . | . . . . . . Allies Corrupted . | . . . . . . Allies Melted . | . . . . . . Intel | -11 -10 -9 -8 -7 -7 ------- Run | Yrd Mat Mat Mat Fac Sto Robot Analysis Total . | . . . . . . Derelict Logs Recovered . | . . . . . . Drone Launches . | . . . . . . Drone Recoveries . | . . . . . . Exploration | -11 -10 -9 -8 -7 -7 ------------- Run | Yrd Mat Mat Mat Fac Sto Turns Passed 1327 | 59 138 163 290 436 241 Spaces Moved 2172 | 42 127 147 685 821 350 Core 49 | 7 6 . . . 36 Treads . | . . . . . . Legs 78 | . . 77 . . 1 Wheels 156 | 35 121 . . . . Hover 123 | . . . . . 123 Flight 1766 | . . 70 685 821 190 Fastest Speed 26 | 50 80 31 28 26 26 Average Speed 43 | 75 83 77 31 36 49 Slowest Speed 200 | 80 150 120 114 82 200 Overloaded Moves . | . . . . . . Propulsion Burnouts . | . . . . . . Robots Hopped 16 | . . . 6 1 9 Cave-ins Triggered . | . . . . . . Exploration Rate (%) 30 | 4 32 16 57 18 55 Regions Visited 5 Branch Regions 1 Pre-discovered Areas . | . . . . . . Known Exits Taken . | . . . . . . Unknown Exits Taken 5 | 1 1 1 1 1 . Scrap Searched . | . . . . . . Spaces Dug . | . . . . . . Terrain Destroyed 69 | . . 25 44 . . Melee . | . . . . . . Projectile . | . . . . . . AOE 69 | . . 25 44 . . Terrain Rammed . | . . . . . . Walls Destroyed . | . . . . . . Machines Disabled . | . . . . . . Actions | -11 -10 -9 -8 -7 -7 --------- Run | Yrd Mat Mat Mat Fac Sto Total 2475 | 69 145 187 730 960 384 Wait 144 | 16 4 12 1 101 10 Move 2138 | 41 126 146 673 818 334 Hop 13 | . . . 5 1 7 Pick Up 52 | 8 4 10 13 14 3 Fast Attach 5 | . . . 1 . 4 Attach 32 | 4 2 8 7 6 5 Detach 9 | . . 2 1 2 4 Swap 15 | . . 2 5 5 3 Drop 20 | . . 2 6 10 2 Fire 35 | . 9 5 18 3 . Melee 12 | . . . . . 12 Ram . | . . . . . . Kick . | . . . . . . Crush . | . . . . . . Escape Stasis . | . . . . . . Rewire . | . . . . . . Trap . | . . . . . . Miscellaneous . | . . . . . . Route ------- -11/Scrapyard -10/Materials -9/Materials -8/Materials -7/Factory -7/Storage History --------- Turn | Location | Event 2 | -11/Scrapyard | Met Revision 17 21 | -11/Scrapyard | Discovered new exit (range 16) 60 | -11/Scrapyard | Entered Materials 118 | -10/Materials | Discovered new exit (range 15) 195 | -10/Materials | Core integrity fell below 50% 198 | -10/Materials | Entered another Materials area 198 | -9/Materials | Evolved 2 slots: Propulsion x2 311 | -9/Materials | Build established: Mutant 347 | -9/Materials | Discovered new exit (range 11) 361 | -9/Materials | Entered another Materials area 361 | -8/Materials | Evolved 2 slots: Utility x2 555 | -8/Materials | Discovered new exit (range 7) 651 | -8/Materials | Entered Factory 651 | -7/Factory | Evolved 2 slots: Power x1, Utility x1 830 | -7/Factory | Fabricated Imp. Cryofiber Web (x1) 883 | -7/Factory | Repaired Surge Thruster 973 | -7/Factory | Discovered new exit (range 10) 1087 | -7/Factory | Entered Storage 1163 | -7/Storage | Lost 3 parts (1p2n) 1283 | -7/Storage | Core integrity fell below 50% 1318 | -7/Storage | Core integrity fell below 20% 1319 | -7/Storage | Lost 10 parts (7n2u1w) 1328 | -7/Storage | Destroyed by G-47 Trooper with Particle Gun Last Messages --------------- Sealed Heavy Doors opened. Airjet destroyed. Critical hit (Burn: +37). Triggered Alarm Trap. An alarm sounds. ALERT: Alarm triggered, dispatching investigation squad. U-05 Engineer lays Concrete. Triggered Shock Trap. The floor emits a surge of raw power. System corrupted (+1). U-05 Engineer lays Concrete. Airjet destroyed. Dropped Lgt. Deuterium Engine. System corrupted: Component data lost. Adv. Weight Redist. System destroyed. W-25 Informer sends out distress signal. K-01 Serf destroyed. Critical hit (Burn: +37). Acquired Imp. Titanium Leg. Map ----- +----------------------------------------------------+ | ????????????????? # # = # "??" | | ????????????????# ?# #?! # "??" | | ????????????????# ?# #? # "??" | | ????????????????### ####??# #?? # """" | | ??????????????????#???????# #??#### | | ??????????????????????????# #????######+### | | ??????????????????????????# #????# | | ??????????????????????????# #????# | | ??????????????????????????# #????# | | ??????????????????????????# #????####### | | ??????????????????????????# #??????????# | | ??????????????????????????# #??????????# | | ??????????????????????????# #?##???????# | | ??????????????????????????# ## #######?# | | ????????????????#########?# # #?# | | ????????????????# / ?# + """ #?# | | ???????????# ## # # """ #?# | | ??????????? / !# # """ #?# | | ????????????????# [ / + ####/# | | ????????????????#! ! # # """ # | | ????????????????# # # """ #""" | | ????????????????# ?# # """ #"R | | ????????????????# ?# # #""" | | ????????????????########### ########## "" | | ?????????????????#!! # # #???# | | ?????????????????#!!@ ! # # #???# | | ?????????????????#!!= # #"" #???# | | ?????????????????# # #"Y ########## | | ????????????????# Y *r g #"" ## ! #? | | ????????????????## """ # # ?# ! #? | | ?????????????????# """ # ##+#### ] / #? | | ?????????????????# """ # + #? | | ?????????????????# # # ! #? | | ?????????################## # ! #? | | ?????????# ########? | | ?????????# ##### #???????? | | ?????????# #???# ######??? | | ?????????################+##+####?# #T###? | | ?????????????????## #?# + *#? | | ????????????????#"" #?# #####? | | ????????????????#"Y """ """ """ #?# #????? | | ????????????????#"" """ """ """ #?######????? | | ????????????????### """ """ """ #???????????? | | ?????????????????? #???????????? | | ????????????????????#############???????????? | | | | | | | | | | | +----------------------------------------------------+ Best States ------------- Heat Dissipation 61 Energy Generation 26 Energy Capacity 360 Matter Stores 285 Matter Capacity 300 Sight Range 16 Terrain Scan Density 10 Additional Mass Support 9 Armor Coverage 225 Evasion (%) 64 Targeting Accuracy 5 Offensive Hacking 20 Defensive Hacking 10 Item Schematics ----------------- None Robot Schematics ------------------ None Fabricated ------------ Imp. Cryofiber Web | x1 | -7/Factory | Preloaded Alien Tech Used ----------------- None Achievements -------------- None Challenges ------------ None Game ------ Seed MetafiberNovaScrap Manual? 0 Play Time 00:29:55 Cumulative 31.2 hours Start 2024.05.31 @ 14:51:13 End 2024.05.31 @ 16:39:39 Sessions 3 Manual Loads 0 Difficulty Rogue Special Mode None Game No. 48 Rogue 48 Adventurer 0 Explorer 0 Win Type - Total 0 Types 0/0/0/0/0/0/0/0/0 Lore% 20 Gallery% 31 Achievement% 23 Wizard Run 0 Options --------- Layout 1 ASCII 0 Keyboard 0 Movement Mouse Keybinds 0 Fullscreen 2 Font 24/Smallcaps Map View 50x35 Zoom Use 0% Tactical HUD 0 Map Filters NONE Filters NONE Steam 1 RUN: 9b0291ce-c523-4936-8916-bd3320d7cc14